fUSD/lending_fUSD_20250629
["ID","MTS","AMOUNT","RATE_DAILY","PERIOD"]
[368461557,1751185840732,-778.29,0.00027397,3]
[368461559,1751185840740,-490.0,0.00027397,3]
[368461560,1751185840750,-490.0,0.00027397,3]
[368461562,1751185840759,-490.0,0.00027397,3]
[368461564,1751185840769,-490.0,0.00027397,3]
[368461566,1751185840778,-490.0,0.00027397,3]
[368461568,1751185840787,-644.99,0.00027397,3]
[368461570,1751185840796,-490.0,0.00027397,3]
[368461572,1751185840806,-490.0,0.00027397,3]
[368461574,1751185840815,-490.0,0.00027397,3]
[368461576,1751185840824,-706.74,0.00027397,3]
[368461577,1751185840833,-490.0,0.00027397,3]
[368461579,1751185840842,-490.0,0.00027397,3]
[368461581,1751185840853,-490.0,0.00027397,3]
[368461583,1751185840862,-1109.28,0.00027397,3]
[368461585,1751185840872,-490.0,0.00027397,3]
[368461587,1751185840882,-506.51663546,0.00027397,3]
[368461589,1751185840891,-490.0,0.00027397,3]
[368461591,1751185840901,-490.0,0.00027397,3]
[368461593,1751185840911,-490.0,0.00027397,3]
[368461595,1751185840920,-490.0,0.00027397,3]
[368461597,1751185840930,-490.0,0.00027397,3]
[368461599,1751185840939,-493.05547117,0.00027397,3]
[368461600,1751185840949,-490.0,0.00027397,3]
[368461602,1751185840958,-490.0,0.00027397,3]
[368461604,1751185840967,-490.0,0.00027397,3]
[368461606,1751185840976,-514.24,0.00027397,3]
[368461608,1751185840986,-262.23428244,0.00027397,3]
[368461610,1751185840995,-490.0,0.00027397,3]
[368461612,1751185841005,-797.84,0.00027397,3]
[368461614,1751185841015,-490.0,0.00027397,3]
[368461615,1751185841024,-490.0,0.00027397,3]
[368461617,1751185841034,-490.0,0.00027397,3]
[368461619,1751185841043,-490.0,0.00027397,3]
[368461621,1751185841052,-490.0,0.00027397,3]
[368461623,1751185841061,-556.68,0.00027397,3]
[368461625,1751185841070,-490.0,0.00027397,3]
[368461627,1751185841080,-490.0,0.00027397,3]
[368461629,1751185841089,-490.0,0.00027397,3]
[368461631,1751185841098,-888.35,0.00027397,3]
[368461632,1751185841107,-490.0,0.00027397,3]
[368461634,1751185841117,-490.0,0.00027397,3]
[368461636,1751185841126,-625.23,0.00027397,3]
[368461638,1751185841135,-490.0,0.00027397,3]
[368461640,1751185841144,-490.0,0.00027397,3]
[368461642,1751185841153,-490.0,0.00027397,3]
[368461644,1751185841162,-490.0,0.00027397,3]
[368461646,1751185841172,-496.29,0.00027397,3]
[368461647,1751185841181,-490.0,0.00027397,3]
[368461649,1751185841191,-490.0,0.00027397,3]
[368461651,1751185841200,-490.0,0.00027397,3]
[368461653,1751185841209,-490.0,0.00027397,3]
[368461655,1751185841218,-490.0,0.00027397,3]
[368461657,1751185841227,-490.0,0.00027397,3]
[368461659,1751185841239,-781.31,0.00027397,3]
[368461661,1751185841248,-490.0,0.00027397,3]
[368461662,1751185841257,-490.0,0.00027397,3]
[368461664,1751185841267,-490.0,0.00027397,3]
[368461666,1751185841276,-490.0,0.00027397,3]
[368461668,1751185841285,-625.86,0.00027397,3]
[368461670,1751185841295,-490.0,0.00027397,3]
[368461672,1751185841304,-336.38064358,0.00027397,3]
[368461674,1751185841315,-490.0,0.00027397,3]
[368461676,1751185841325,-490.0,0.00027397,3]
[368461678,1751185841334,-1231.73,0.00027397,3]
[368461680,1751185841343,-490.0,0.00027397,3]
[368461682,1751185841352,-490.0,0.00027397,3]
[368461683,1751185841361,-1207.66,0.00027397,3]
[368461685,1751185841370,-490.0,0.00027397,3]
[368461687,1751185841379,-490.0,0.00027397,3]
[368461689,1751185841388,-490.0,0.00027397,3]
[368461691,1751185841397,-490.0,0.00027397,3]
[368461693,1751185841406,-490.0,0.00027397,3]
[368461695,1751185841415,-490.0,0.00027397,3]
[368461697,1751185841425,-490.0,0.00027397,3]
[368461699,1751185841434,-490.0,0.00027397,3]
[368461700,1751185841443,-490.0,0.00027397,3]
[368461702,1751185841452,-490.0,0.00027397,3]
[368461704,1751185841462,-490.0,0.00027397,3]
[368461706,1751185841471,-490.0,0.00027397,3]
[368461708,1751185841480,-490.0,0.00027397,3]
[368461710,1751185841489,-490.1,0.00027397,3]
[368461712,1751185841498,-490.0,0.00027397,3]
[368461714,1751185841507,-490.0,0.00027397,3]
[368461716,1751185841516,-490.0,0.00027397,3]
[368461718,1751185841525,-490.0,0.00027397,3]
[368461720,1751185841534,-490.0,0.00027397,3]
[368461722,1751185841543,-490.0,0.00027397,3]
[368461723,1751185841552,-490.0,0.00027397,3]
[368461724,1751185841561,-490.0,0.00027397,3]
[368461725,1751185841570,-490.0,0.00027397,3]
[368461726,1751185841579,-490.0,0.00027397,3]
[368461727,1751185841588,-784.94,0.00027397,3]
[368461728,1751185841598,-490.0,0.00027397,3]
[368461729,1751185841607,-518.88,0.00027397,3]
[368461730,1751185841616,-522.61,0.00027397,3]
[368461731,1751185841624,-490.0,0.00027397,3]
[368461732,1751185841633,-490.0,0.00027397,3]
[368461733,1751185841642,-490.0,0.00027397,3]
[368461734,1751185841651,-490.0,0.00027397,3]
[368461735,1751185841660,-666.9,0.00027397,3]
[368461736,1751185841671,-413.62293815,0.00027397,3]
[368461737,1751185841680,-490.0,0.00027397,3]
[368461738,1751185841689,-548.91820789,0.00027397,3]
[368461739,1751185841698,-490.0,0.00027397,3]
[368461740,1751185841708,-490.0,0.00027397,3]
[368461741,1751185841717,-490.0,0.00027397,3]
[368461742,1751185841726,-490.0,0.00027397,3]
[368461743,1751185841734,-490.0,0.00027397,3]
[368461744,1751185841744,-600.7,0.00027397,3]
[368461745,1751185841753,-490.0,0.00027397,3]
[368461746,1751185841762,-1181.28,0.00027397,3]
[368461747,1751185841771,-490.0,0.00027397,3]
[368461749,1751185841780,-632.23,0.00027397,3]
[368461750,1751185841789,-490.0,0.00027397,3]
[368461752,1751185841798,-1648.17,0.00027397,3]
[368461754,1751185841807,-490.0,0.00027397,3]
[368461756,1751185841817,-490.0,0.00027397,3]
[368461758,1751185841827,-423.59704227,0.00027397,3]
[368461760,1751185841836,-490.0,0.00027397,3]
[368461762,1751185841846,-211.05331348,0.00027397,3]
[368461764,1751185841855,-490.0,0.00027397,3]
[368461766,1751185841864,-490.0,0.00027397,3]
[368461768,1751185841873,-1089.25,0.00027397,3]
[368461770,1751185841883,-701.65,0.00027397,3]
[368461772,1751185841892,-490.0,0.00027397,3]
[368461774,1751185841902,-490.0,0.00027397,3]
[368461775,1751185841911,-490.0,0.00027397,3]
[368461777,1751185841920,-490.0,0.00027397,3]
[368461780,1751185841930,-490.0,0.00027397,3]
[368461782,1751185841939,-643.82,0.00027397,3]
[368461784,1751185841949,-542.60946382,0.00027397,3]
[368461786,1751185841959,-490.0,0.00027397,3]
[368461787,1751185841968,-490.0,0.00027397,3]
[368461789,1751185841977,-1868.7,0.00027397,3]
[368461791,1751185841987,-490.0,0.00027397,3]
[368461793,1751185841996,-490.0,0.00027397,3]
[368461795,1751185842004,-490.0,0.00027397,3]
[368461797,1751185842014,-1425.96,0.00027397,3]
[368461799,1751185842023,-490.0,0.00027397,3]
[368461801,1751185842032,-490.0,0.00027397,3]
[368461803,1751185842041,-490.0,0.00027397,3]
[368461805,1751185842051,-490.0,0.00027397,3]
[368461807,1751185842060,-490.0,0.00027397,3]
[368461808,1751185842069,-490.0,0.00027397,3]
[368461809,1751185842078,-490.0,0.00027397,3]
[368461810,1751185842087,-490.0,0.00027397,3]
[368461811,1751185842096,-490.0,0.00027397,3]
[368461812,1751185842105,-494.61,0.00027397,3]
[368461813,1751185842114,-490.0,0.00027397,3]
[368461814,1751185842123,-490.0,0.00027397,3]
[368461815,1751185842132,-490.0,0.00027397,3]
[368461816,1751185842141,-490.0,0.00027397,3]
[368461817,1751185842150,-490.0,0.00027397,3]
[368461818,1751185842159,-490.0,0.00027397,3]
[368461819,1751185842169,-490.0,0.00027397,3]
[368461820,1751185842179,-490.0,0.00027397,3]
[368461821,1751185842189,-490.0,0.00027397,3]
[368461822,1751185842198,-490.0,0.00027397,3]
[368461823,1751185842207,-490.0,0.00027397,3]
[368461824,1751185842216,-490.0,0.00027397,3]
[368461825,1751185842225,-490.0,0.00027397,3]
[368461826,1751185842236,-491.18685287,0.00027397,3]
[368461827,1751185842248,-490.0,0.00027397,3]
[368461828,1751185842257,-490.0,0.00027397,3]
[368461829,1751185842266,-490.0,0.00027397,3]
[368461830,1751185842275,-490.0,0.00027397,3]
[368461831,1751185842284,-490.0,0.00027397,3]
[368461832,1751185842293,-490.0,0.00027397,3]
[368461833,1751185842303,-490.0,0.00027397,3]
[368461834,1751185842313,-717.17,0.00027397,3]
[368461835,1751185842323,-490.0,0.00027397,3]
[368461836,1751185842333,-490.0,0.00027397,3]
[368461837,1751185842343,-490.0,0.00027397,3]
[368461838,1751185842352,-490.0,0.00027397,3]
[368461839,1751185842362,-576.25,0.00027397,3]
[368461840,1751185842371,-500.0,0.00027397,3]
[368461841,1751185842380,-490.0,0.00027397,3]
[368461842,1751185842390,-490.0,0.00027397,3]
[368461843,1751185842399,-533.85,0.00027397,3]
[368461844,1751185842410,-490.0,0.00027397,3]
[368461845,1751185842419,-490.0,0.00027397,3]
[368461846,1751185842428,-490.0,0.00027397,3]
[368461847,1751185842437,-490.0,0.00027397,3]
[368461848,1751185842446,-490.0,0.00027397,3]
[368461849,1751185842456,-490.0,0.00027397,3]
[368461850,1751185842467,-490.0,0.00027397,3]
[368461852,1751185842477,-1275.86,0.00027397,3]
[368461854,1751185842486,-2866.42,0.00027397,3]
[368461856,1751185842496,-490.0,0.00027397,3]
[368461858,1751185842505,-1268.84,0.00027397,3]
[368461860,1751185842514,-490.0,0.00027397,3]
[368461862,1751185842523,-490.0,0.00027397,3]
[368461864,1751185842533,-490.0,0.00027397,3]
[368461866,1751185842543,-490.0,0.00027397,3]
[368461868,1751185842551,-490.0,0.00027397,3]
[368461870,1751185842561,-519.36546108,0.00027397,3]
[368461872,1751185842570,-490.0,0.00027397,3]
[368461874,1751185842580,-490.0,0.00027397,3]
[368461876,1751185842590,-2245.18,0.00027397,3]
[368461878,1751185842599,-492.97651455,0.00027397,3]
[368461880,1751185842608,-490.0,0.00027397,3]
[368461882,1751185842618,-490.0,0.00027397,3]
[368461883,1751185842627,-490.0,0.00027397,3]
[368461884,1751185842636,-490.0,0.00027397,3]
[368461885,1751185842646,-490.0,0.00027397,3]
[368461886,1751185842655,-490.0,0.00027397,3]
[368461887,1751185842664,-490.0,0.00027397,3]
[368461888,1751185842674,-423.48291578,0.00027397,3]
[368461889,1751185842683,-490.0,0.00027397,3]
[368461890,1751185842692,-522.1451649,0.00027397,3]
[368461891,1751185842702,-490.0,0.00027397,3]
[368461892,1751185842711,-557.54685091,0.00027397,3]
[368461893,1751185842721,-490.0,0.00027397,3]
[368461894,1751185842731,-490.0,0.00027397,3]
[368461895,1751185842740,-683.54,0.00027397,3]
[368461896,1751185842749,-490.0,0.00027397,3]
[368461897,1751185842758,-490.0,0.00027397,3]
[368461898,1751185842768,-490.35056051,0.00027397,3]
[368461899,1751185842778,-490.0,0.00027397,3]
[368461900,1751185842788,-490.0,0.00027397,3]
[368461901,1751185842797,-490.0,0.00027397,2]
[368461902,1751185842807,-490.0,0.00027397,3]
[368461903,1751185842817,-490.0,0.00027397,3]
[368461904,1751185842828,-490.0,0.00027397,3]
[368461905,1751185842838,-490.0,0.00027397,3]
[368461906,1751185842848,-490.0,0.00027397,3]
[368461907,1751185842858,-490.0,0.00027397,3]
[368461909,1751185842868,-1630.4,0.00027397,3]
[368461911,1751185842878,-490.0,0.00027397,3]
[368461912,1751185842888,-490.0,0.00027397,3]
[368461913,1751185842898,-490.0,0.00027397,3]
[368461914,1751185842908,-1144.51,0.00027397,3]
[368461915,1751185842919,-490.0,0.00027397,3]
[368461916,1751185842929,-639.92,0.00027397,3]
[368461917,1751185842939,-490.0,0.00027397,3]
[368461918,1751185842949,-490.0,0.00027397,3]
[368461919,1751185842958,-490.0,0.00027397,3]
[368461920,1751185842968,-490.0,0.00027397,3]
[368461921,1751185842979,-2746.45,0.00027397,3]
[368461922,1751185842988,-490.0,0.00027397,3]
[368461923,1751185842998,-490.0,0.00027397,3]
[368461924,1751185843008,-490.0,0.00027397,3]
[368461925,1751185843018,-490.0,0.00027397,3]
[368461926,1751185843027,-1330.65,0.00027397,3]
[368461927,1751185843037,-490.0,0.00027397,3]
[368461928,1751185843047,-495.90850278,0.00027397,3]
[368461929,1751185843057,-490.0,0.00027397,3]
[368461930,1751185843067,-490.0,0.00027397,3]
[368461931,1751185843077,-858.15,0.00027397,3]
[368461932,1751185843086,-542.89,0.00027397,3]
[368461933,1751185843096,-490.0,0.00027397,3]
[368461934,1751185843106,-490.0,0.00027397,3]
[368461935,1751185843116,-490.0,0.00027397,3]
[368461936,1751185843126,-490.0,0.00027397,3]
[368461937,1751185843135,-490.0,0.00027397,3]
[368461938,1751185843146,-490.0,0.00027397,3]
[368461939,1751185843156,-490.0,0.00027397,3]
[368461940,1751185843165,-595.15,0.00027397,3]
[368461941,1751185843175,-1209.46,0.00027397,3]
[368461942,1751185843184,-490.0,0.00027397,3]
[368461943,1751185843194,-490.0,0.00027397,3]
[368461944,1751185843203,-602.64,0.00027397,3]
[368461945,1751185843212,-490.0,0.00027397,3]
[368461946,1751185843222,-3000.41,0.00027397,3]
[368461947,1751185843231,-808.99,0.00027397,3]
[368461948,1751185843244,-490.0,0.00027397,3]
[368461949,1751185843254,-552.41,0.00027397,3]
[368461950,1751185843264,-490.0,0.00027397,3]
[368461951,1751185843274,-490.0,0.00027397,3]
[368461952,1751185843284,-490.0,0.00027397,3]
[368461953,1751185843294,-490.0,0.00027397,3]
[368461954,1751185843304,-490.0,0.00027397,3]
[368461955,1751185843315,-490.0,0.00027397,3]
[368461956,1751185843325,-490.0,0.00027397,3]
[368461957,1751185843334,-490.0,0.00027397,3]
[368461958,1751185843343,-490.0,0.00027397,3]
[368461959,1751185843352,-490.0,0.00027397,3]
[368461960,1751185843362,-630.17,0.00027397,3]
[368461961,1751185843371,-490.0,0.00027397,3]
[368461962,1751185843380,-490.0,0.00027397,3]
[368461963,1751185843389,-490.0,0.00027397,3]
[368461964,1751185843399,-490.0,0.00027397,3]
[368461965,1751185843408,-490.0,0.00027397,3]
[368461966,1751185843418,-490.0,0.00027397,3]
[368461967,1751185843427,-490.0,0.00027397,3]
[368461968,1751185843437,-490.0,0.00027397,3]
[368461969,1751185843446,-490.0,0.00027397,3]
[368461970,1751185843456,-1610.26,0.00027397,3]
[368461971,1751185843465,-490.0,0.00027397,3]
[368461972,1751185843475,-1740.79,0.00027397,3]
[368461973,1751185843484,-490.0,0.00027397,3]
[368461974,1751185843494,-490.0,0.00027397,3]
[368461975,1751185843504,-490.0,0.00027397,3]
[368461976,1751185843514,-1488.92,0.00027397,3]
[368461977,1751185843524,-2621.64,0.00027397,3]
[368461978,1751185843533,-524.47,0.00027397,3]
[368461979,1751185843543,-490.0,0.00027397,3]
[368461980,1751185843552,-1425.23,0.00027397,3]
[368461981,1751185843562,-490.0,0.00027397,3]
[368461982,1751185843571,-490.0,0.00027397,3]
[368461983,1751185843581,-490.0,0.00027397,3]
[368461984,1751185843590,-490.0,0.00027397,3]
[368461985,1751185843600,-490.0,0.00027397,3]
[368461986,1751185843609,-490.0,0.00027397,3]
[368461987,1751185843619,-490.0,0.00027397,3]
[368461988,1751185843629,-490.0,0.00027397,3]
[368461989,1751185843639,-490.0,0.00027397,3]
[368461990,1751185843648,-593.06,0.00027397,3]
[368461991,1751185843658,-491.19,0.00027397,3]
[368461992,1751185843667,-963.5,0.00027397,3]
[368461993,1751185843677,-490.0,0.00027397,3]
[368461994,1751185843687,-490.0,0.00027397,3]
[368461995,1751185843697,-490.0,0.00027397,3]
[368461996,1751185843707,-490.0,0.00027397,3]
[368461997,1751185843716,-629.87,0.00027397,3]
[368461998,1751185843726,-490.0,0.00027397,3]
[368461999,1751185843737,-490.0,0.00027397,3]
[368462000,1751185843747,-1445.89,0.00027397,3]
[368462001,1751185843756,-501.95,0.00027397,3]
[368462002,1751185843767,-206.7049461,0.00027397,3]
[368462003,1751185843776,-519.99080662,0.00027397,3]
[368462004,1751185843787,-490.0,0.00027397,3]
[368462005,1751185843796,-490.0,0.00027397,3]
[368462006,1751185843806,-490.0,0.00027397,3]
[368462007,1751185843817,-490.0,0.00027397,3]
[368462008,1751185843827,-490.0,0.00027397,3]
[368462009,1751185843837,-490.0,0.00027397,3]
[368462010,1751185843847,-490.0,0.00027397,3]
[368462011,1751185843857,-490.0,0.00027397,3]
[368462012,1751185843867,-490.0,0.00027397,3]
[368462013,1751185843877,-559.09192739,0.00027397,3]
[368462014,1751185843887,-542.69,0.00027397,3]
[368462015,1751185843897,-490.0,0.00027397,3]
[368462016,1751185843906,-1946.16,0.00027397,3]
[368462017,1751185843916,-490.0,0.00027397,3]
[368462018,1751185843926,-892.04,0.00027397,3]
[368462019,1751185843936,-490.0,0.00027397,3]
[368462020,1751185843945,-586.59,0.00027397,3]
[368462021,1751185843955,-1270.42,0.00027397,3]
[368462022,1751185843965,-490.0,0.00027397,3]
[368462023,1751185843974,-490.0,0.00027397,3]
[368462024,1751185843984,-490.0,0.00027397,3]
[368462025,1751185843994,-490.0,0.00027397,3]
[368462026,1751185844004,-490.0,0.00027397,3]
[368462027,1751185844014,-490.0,0.00027397,3]
[368462028,1751185844024,-490.0,0.00027397,3]
[368462029,1751185844035,-2128.81,0.00027397,3]
[368462030,1751185844044,-490.0,0.00027397,3]
[368462031,1751185844054,-1032.72,0.00027397,3]
[368462032,1751185844064,-490.0,0.00027397,3]
[368462033,1751185844074,-490.0,0.00027397,3]
[368462034,1751185844085,-599.6,0.00027397,3]
[368462035,1751185844096,-2780.33,0.00027397,3]
[368462036,1751185844106,-1967.49,0.00027397,3]
[368462037,1751185844116,-583.21,0.00027397,3]
[368462038,1751185844126,-490.0,0.00027397,3]
[368462039,1751185844135,-746.69,0.00027397,3]
[368462040,1751185844145,-670.64,0.00027397,3]
[368462041,1751185844155,-490.0,0.00027397,3]
[368462042,1751185844165,-490.0,0.00027397,3]
[368462043,1751185844175,-490.0,0.00027397,3]
[368462044,1751185844185,-490.0,0.00027397,3]
[368462045,1751185844195,-490.0,0.00027397,3]
[368462046,1751185844206,-490.0,0.00027397,3]
[368462047,1751185844217,-490.0,0.00027397,3]
[368462048,1751185844227,-490.0,0.00027397,3]
[368462049,1751185844245,-1226.87,0.00027397,3]
[368462050,1751185844267,-490.0,0.00027397,3]
[368462051,1751185844290,-490.0,0.00027397,3]
[368462052,1751185844304,-490.0,0.00027397,3]
[368462053,1751185844314,-490.0,0.00027397,3]
[368462054,1751185844324,-2112.86,0.00027397,3]
[368462055,1751185844334,-490.0,0.00027397,3]
[368462056,1751185844344,-490.0,0.00027397,3]
[368462057,1751185844354,-490.0,0.00027397,3]
[368462058,1751185844364,-666.97,0.00027397,3]
[368462059,1751185844374,-1584.43,0.00027397,3]
[368462060,1751185844383,-490.0,0.00027397,3]
[368462061,1751185844393,-490.0,0.00027397,3]
[368462062,1751185844403,-490.0,0.00027397,3]
[368462063,1751185844413,-490.0,0.00027397,3]
[368462064,1751185844422,-490.0,0.00027397,3]
[368462065,1751185844432,-490.0,0.00027397,3]
[368462066,1751185844442,-647.85,0.00027397,3]
[368462067,1751185844452,-3231.04,0.00027397,3]
[368462068,1751185844462,-1280.21,0.00027397,3]
[368462069,1751185844471,-580.85,0.00027397,3]
[368462070,1751185844481,-490.0,0.00027397,3]
[368462071,1751185844491,-490.0,0.00027397,3]
[368462072,1751185844501,-490.0,0.00027397,3]
[368462073,1751185844511,-1364.28,0.00027397,3]
[368462074,1751185844520,-490.0,0.00027397,3]
[368462075,1751185844530,-490.0,0.00027397,3]
[368462076,1751185844539,-490.0,0.00027397,3]
[368462077,1751185844549,-490.0,0.00027397,3]
[368462078,1751185844559,-1843.46,0.00027397,3]
[368462079,1751185844569,-490.0,0.00027397,3]
[368462080,1751185844578,-1255.22,0.00027397,3]
[368462081,1751185844588,-490.0,0.00027397,3]
[368462082,1751185844597,-490.0,0.00027397,3]
[368462083,1751185844607,-934.19,0.00027397,3]
[368462084,1751185844617,-490.0,0.00027397,3]
[368462085,1751185844627,-490.0,0.00027397,3]
[368462086,1751185844637,-490.0,0.00027397,3]
[368462087,1751185844646,-491.42415589,0.00027397,3]
[368462088,1751185844656,-490.0,0.00027397,3]
[368462089,1751185844666,-1802.68,0.00027397,3]
[368462090,1751185844676,-490.0,0.00027397,3]
[368462091,1751185844685,-490.0,0.00027397,3]
[368462092,1751185844695,-490.0,0.00027397,3]
[368462093,1751185844704,-490.0,0.00027397,3]
[368462094,1751185844714,-490.0,0.00027397,3]
[368462095,1751185844724,-490.0,0.00027397,3]
[368462096,1751185844734,-1362.21,0.00027397,3]
[368462097,1751185844744,-490.0,0.00027397,3]
[368462098,1751185844753,-490.0,0.00027397,3]
[368462099,1751185844763,-490.0,0.00027397,3]
[368462100,1751185844772,-1075.26,0.00027397,3]
[368462101,1751185844783,-222.01858147,0.00027397,3]
[368462102,1751185844792,-490.0,0.00027397,3]
[368462103,1751185844802,-490.0,0.00027397,3]
[368462104,1751185844812,-2250.45,0.00027397,3]
[368462105,1751185844821,-837.3,0.00027397,3]
[368462106,1751185844831,-490.0,0.00027397,3]
[368462107,1751185844840,-1340.01,0.00027397,3]
[368462108,1751185844850,-496.96,0.00027397,3]
[368462109,1751185844859,-490.0,0.00027397,3]
[368462110,1751185844869,-1659.01,0.00027397,3]
[368462111,1751185844879,-490.0,0.00027397,3]
[368462112,1751185844889,-890.62,0.00027397,3]
[368462113,1751185844898,-490.0,0.00027397,3]
[368462114,1751185844908,-490.0,0.00027397,3]
[368462115,1751185844918,-1310.12,0.00027397,3]
[368462116,1751185844928,-490.0,0.00027397,3]
[368462117,1751185844938,-490.0,0.00027397,3]
[368462118,1751185845269,-490.0,0.00027397,3]
[368462119,1751185845322,-587.6,0.00027397,3]
[368462120,1751185845335,-976.75,0.00027397,3]
[368462121,1751185845346,-1333.97,0.00027397,3]
[368462122,1751185845356,-490.0,0.00027397,3]
[368462123,1751185845366,-603.14,0.00027397,3]
[368462124,1751185845376,-2664.75,0.00027397,3]
[368462125,1751185845386,-215.28432304,0.00027397,3]
[368462126,1751185845395,-490.0,0.00027397,3]
[368462127,1751185845406,-1972.06,0.00027397,3]
[368462128,1751185845417,-863.57,0.00027397,3]
[368462129,1751185845426,-490.0,0.00027397,3]
[368462130,1751185845435,-490.0,0.00027397,3]
[368462131,1751185845445,-490.0,0.00027397,3]
[368462132,1751185845455,-1045.26,0.00027397,3]
[368462133,1751185845465,-490.0,0.00027397,3]
[368462134,1751185845474,-490.0,0.00027397,3]
[368462135,1751185845484,-490.0,0.00027397,3]
[368462136,1751185845494,-1439.16,0.00027397,3]
[368462137,1751185845504,-490.0,0.00027397,3]
[368462138,1751185845514,-2186.11,0.00027397,3]
[368462139,1751185845524,-557.7,0.00027397,3]
[368462140,1751185845534,-174.667465,0.00027397,7]
[368462141,1751185845544,-490.0,0.00027397,3]
[368462142,1751185845555,-1157.1,0.00027397,3]
[368462143,1751185845564,-490.0,0.00027397,3]
[368462144,1751185845574,-1111.87,0.00027397,3]
[368462145,1751185845584,-490.0,0.00027397,3]
[368462146,1751185845593,-490.0,0.00027397,3]
[368462147,1751185845603,-1055.39,0.00027397,3]
[368462148,1751185845612,-490.0,0.00027397,3]
[368462149,1751185845622,-372.11883628,0.00027397,3]
[368462150,1751185845631,-490.0,0.00027397,3]
[368462151,1751185845640,-490.0,0.00027397,3]
[368462152,1751185845650,-490.0,0.00027397,3]
[368462153,1751185845659,-490.0,0.00027397,3]
[368462154,1751185845669,-490.0,0.00027397,3]
[368462155,1751185845678,-490.0,0.00027397,3]
[368462156,1751185845688,-490.0,0.00027397,3]
[368462157,1751185845697,-1921.48,0.00027397,3]
[368462158,1751185845707,-490.0,0.00027397,3]
[368462159,1751185845716,-490.0,0.00027397,3]
[368462160,1751185845726,-1940.59,0.00027397,3]
[368462161,1751185845736,-490.0,0.00027397,3]
[368462162,1751185845745,-511.33,0.00027397,3]
[368462163,1751185845756,-490.0,0.00027397,3]
[368462164,1751185845765,-490.0,0.00027397,3]
[368462165,1751185845775,-490.0,0.00027397,3]
[368462166,1751185845785,-1930.79,0.00027397,3]
[368462167,1751185845794,-1218.44,0.00027397,3]
[368462168,1751185845804,-490.0,0.00027397,3]
[368462169,1751185845814,-3052.4,0.00027397,3]
[368462170,1751185845824,-1945.49,0.00027397,3]
[368462171,1751185845834,-490.0,0.00027397,3]
[368462172,1751185845843,-576.83,0.00027397,3]
[368462174,1751185845854,-490.0,0.00027397,3]
[368462176,1751185845863,-1647.01,0.00027397,3]
[368462178,1751185845873,-490.0,0.00027397,3]
[368462180,1751185845882,-984.42,0.00027397,3]
[368462182,1751185845892,-490.0,0.00027397,3]
[368462184,1751185845902,-1374.54,0.00027397,3]
[368462186,1751185845911,-490.0,0.00027397,3]
[368462187,1751185845921,-2051.22,0.00027397,3]
[368462188,1751185845931,-503.82,0.00027397,3]